bitfinex-derivatives/quotes_BTCF0:USTF0_20250704
["timestamp","ask_amount","ask_price","bid_price","bid_amount"]
[1751655383767,0.976743,107670.0,107660.0,0.27696809]
[1751655383973,0.976743,107670.0,107660.0,0.60310289]
[1751655385176,0.6186082,107670.0,107660.0,0.92923769]
[1751655385468,0.6186082,107670.0,107660.0,1.02293769]
[1751655385777,0.944743,107670.0,107660.0,1.02293769]
[1751655388281,0.6186082,107670.0,107660.0,1.02293769]
[1751655388885,0.4329,107670.0,107660.0,1.02293769]
[1751655389385,0.6186249,107670.0,107660.0,1.02293769]
[1751655389683,0.4329,107670.0,107660.0,0.99133769]
[1751655389885,0.4647,107670.0,107660.0,0.99133769]
[1751655390286,0.4637,107670.0,107660.0,0.99133769]
[1751655390485,0.4647,107670.0,107660.0,0.99133769]
[1751655390889,0.4637,107670.0,107660.0,0.99133769]
[1751655391285,0.4647,107670.0,107660.0,0.99133769]
[1751655392085,0.4647,107670.0,107660.0,0.99133767]
[1751655392589,0.6504253,107670.0,107660.0,0.99133767]
[1751655396089,0.6494253,107670.0,107660.0,0.99133767]
[1751655396276,0.6504253,107670.0,107660.0,0.99133767]
[1751655396589,0.6504253,107670.0,107660.0,0.66520287]
[1751655396889,0.9765601,107670.0,107660.0,0.66520287]
[1751655398587,0.9765601,107670.0,107660.0,0.60310287]
[1751655400889,0.9447601,107670.0,107660.0,0.60310287]
[1751655401091,0.9760601,107670.0,107660.0,0.54737744]
[1751655401590,0.9760601,107670.0,107660.0,0.60310428]
[1751655401787,0.9760601,107670.0,107660.0,0.41737888]
[1751655401993,0.9760601,107670.0,107660.0,0.58312138]
[1751655402386,1.3260601,107670.0,107660.0,0.25698658]
[1751655402582,0.1857425,107660.0,107650.0,0.10326823]
[1751655402787,2.4587921,107660.0,107650.0,0.11785653]
[1751655402986,2.4587921,107660.0,107650.0,0.11198903]
[1751655403286,2.4587921,107660.0,107650.0,0.03768653]
[1751655404388,2.4274921,107660.0,107650.0,0.03768653]
[1751655404588,2.4575921,107660.0,107650.0,0.03768653]
[1751655404789,2.4615921,107660.0,107650.0,0.03868653]
[1751655405996,2.4615921,107660.0,107650.0,0.22444633]
[1751655406195,2.4615921,107660.0,107650.0,0.28012636]
[1751655406388,2.1354573,107660.0,107650.0,0.28012636]
[1751655406992,2.4615921,107660.0,107650.0,0.26560832]
[1751655408392,2.1354573,107660.0,107650.0,0.26560832]
[1751655408693,2.4962573,107660.0,107650.0,0.26560832]
[1751655411098,2.4962573,107660.0,107650.0,0.24642468]
[1751655411395,2.51374788,107660.0,107650.0,0.57255948]
[1751655411796,2.32374788,107660.0,107650.0,0.57255948]
[1751655411996,2.52374788,107660.0,107650.0,0.57255948]
[1751655412895,2.52374788,107660.0,107650.0,0.24642468]
[1751655413096,2.52374788,107660.0,107650.0,0.57255948]
[1751655413695,3.17601748,107660.0,107650.0,0.06066488]
[1751655414000,0.185777,107640.0,107630.0,0.39303629]
[1751655414196,1.73553621,107640.0,107630.0,0.77836991]
[1751655414396,1.73553621,107640.0,107630.0,0.68566991]
[1751655414596,1.82883621,107640.0,107630.0,0.70019081]
[1751655414994,1.82883621,107640.0,107630.0,0.60729631]
[1751655415393,1.82983621,107640.0,107630.0,0.28416151]
[1751655415698,1.82979621,107640.0,107630.0,0.61229631]
[1751655416097,1.82979621,107640.0,107630.0,0.38007341]
[1751655416297,1.82979621,107640.0,107630.0,0.56586771]
[1751655417804,1.82979621,107640.0,107630.0,0.23973291]
[1751655417805,1.50366141,107640.0,107630.0,0.23973291]
[1751655418302,1.50366141,107640.0,107630.0,0.24685813]
[1751655419198,1.83004128,107640.0,107630.0,0.22724577]
[1751655419408,2.57084128,107640.0,107630.0,0.04145147]
[1751655419612,2.57084128,107640.0,107630.0,0.22724577]
[1751655419903,2.57084128,107640.0,107630.0,0.26430884]
[1751655420294,2.57084128,107640.0,107630.0,0.07851454]
[1751655420494,2.57084128,107640.0,107630.0,0.26430884]
[1751655421000,2.57084128,107640.0,107630.0,0.2643103]
[1751655423208,2.19084128,107640.0,107630.0,0.2643103]
[1751655423406,1.86454141,107640.0,107630.0,0.59069017]
[1751655424006,1.86454141,107640.0,107630.0,0.2643103]
[1751655424709,1.87054141,107640.0,107630.0,0.2623103]
[1751655426908,1.87054141,107640.0,107630.0,0.2603103]
[1751655426909,2.21254141,107640.0,107630.0,0.2603103]
[1751655428705,2.53892128,107640.0,107630.0,0.074516]
[1751655429007,2.53892128,107640.0,107630.0,0.03745293]
[1751655429206,2.53892128,107640.0,107630.0,0.074516]
[1751655429410,2.53892128,107640.0,107630.0,0.2603103]
[1751655430905,2.53892128,107640.0,107630.0,0.074516]
[1751655431111,2.51892128,107640.0,107630.0,0.2603103]
[1751655431612,1.87254141,107640.0,107630.0,0.2603103]
[1751655431810,2.19892128,107640.0,107630.0,0.2603103]
[1751655432011,2.57892128,107640.0,107630.0,0.2603103]
[1751655432412,2.19892128,107640.0,107630.0,0.2603103]
[1751655432711,1.87254141,107640.0,107630.0,0.2603103]
[1751655433102,2.20254141,107640.0,107630.0,0.2603103]
[1751655433610,1.87254141,107640.0,107630.0,0.2603103]
[1751655434010,2.18254141,107640.0,107630.0,0.2603103]
[1751655434207,1.87254141,107640.0,107630.0,0.2603103]
[1751655435810,2.19892128,107640.0,107630.0,0.2603103]
[1751655436917,1.87254141,107640.0,107630.0,0.2603103]
[1751655438421,2.25254141,107640.0,107630.0,0.2603103]
[1751655439027,2.57892128,107640.0,107630.0,0.2603103]
[1751655439814,2.90541425,107640.0,107630.0,0.2603103]
[1751655440116,2.50897783,107640.0,107630.0,0.58674672]
[1751655440320,2.57897783,107640.0,107630.0,0.58674672]
[1751655440923,2.19897783,107640.0,107630.0,0.58674672]
[1751655441221,2.54897783,107640.0,107630.0,0.58674672]
[1751655441827,2.54894961,107640.0,107630.0,0.2603103]
[1751655442724,0.1857943,107630.0,107620.0,0.33532697]
[1751655443023,0.6449943,107630.0,107620.0,0.33532697]
[1751655443223,0.64549076,107630.0,107620.0,0.33532697]
[1751655443421,0.64549076,107630.0,107620.0,0.36652697]
[1751655443622,0.64549076,107630.0,107620.0,0.39812697]
[1751655444025,0.72069521,107630.0,107620.0,0.39812697]
[1751655444527,0.72469521,107630.0,107620.0,0.39812697]
[1751655444918,0.72469521,107630.0,107620.0,0.40520555]
[1751655445122,1.56865521,107630.0,107620.0,0.40520555]
[1751655446227,1.53555521,107630.0,107620.0,0.37400555]
[1751655447127,1.53605167,107630.0,107620.0,0.37400555]
[1751655447331,1.56695167,107630.0,107620.0,0.06369805]
[1751655447531,1.56695167,107630.0,107620.0,0.24962205]
[1751655448330,1.89335987,107630.0,107620.0,0.24962205]
[1751655450735,1.56695167,107630.0,107620.0,0.24962205]
[1751655454639,1.56695167,107630.0,107620.0,0.27817971]
[1751655456241,1.89335987,107630.0,107620.0,0.27817971]
[1751655456436,1.89335987,107630.0,107620.0,0.22244784]
[1751655456633,1.89435987,107630.0,107620.0,0.22244784]
[1751655456839,1.89435987,107630.0,107620.0,0.03663624]
[1751655457644,1.89435987,107630.0,107620.0,0.09236795]
[1751655457938,1.89435987,107630.0,107620.0,0.27817955]
[1751655458133,1.89435987,107630.0,107620.0,0.08528937]
[1751655459040,1.89435987,107630.0,107620.0,0.08538595]
[1751655462648,2.22435987,107630.0,107620.0,0.08538595]
[1751655462848,2.22435987,107630.0,107620.0,0.02965424]
[1751655463842,2.22447593,107630.0,107620.0,0.02965424]
[1751655465048,2.55100019,107630.0,107620.0,0.02965424]
[1751655465245,2.22447593,107630.0,107620.0,0.02965424]
[1751655472747,2.22447593,107630.0,107620.0,0.06678102]
[1751655473048,2.22447593,107630.0,107620.0,0.0946261]
[1751655473249,2.22447593,107630.0,107620.0,0.05749932]
[1751655475244,0.1858116,107620.0,107610.0,0.03712678]
[1751655475446,1.65254529,107620.0,107610.0,0.25177435]
[1751655475844,1.65304175,107620.0,107610.0,0.25177435]
[1751655476752,1.65504175,107620.0,107610.0,0.22295558]
[1751655477746,1.65504175,107620.0,107610.0,0.22395558]
[1751655480250,1.65553821,107620.0,107610.0,0.22395558]
[1751655480453,0.1868288,107610.0,107600.0,0.50741618]
[1751655480649,1.71835306,107610.0,107600.0,0.88394044]
[1751655480953,1.71884952,107610.0,107600.0,0.88394044]
[1751655481556,1.71884952,107610.0,107600.0,0.51295548]
[1751655481749,1.71884952,107610.0,107600.0,0.83947974]
[1751655482348,1.71884952,107610.0,107600.0,0.79301944]
[1751655482549,1.71984952,107610.0,107600.0,0.79401944]
[1751655482954,1.39332526,107610.0,107600.0,0.79401944]
[1751655483150,0.1858461,107600.0,107590.0,0.0061417]
[1751655483346,0.1858461,107600.0,107590.0,0.51852936]
[1751655483347,0.62754845,107600.0,107590.0,0.51852936]
[1751655483551,0.56474845,107600.0,107590.0,0.51852936]
[1751655483750,1.73559271,107600.0,107590.0,0.42526596]
[1751655483956,1.41006845,107600.0,107590.0,0.61112936]
[1751655484349,1.41006845,107600.0,107590.0,0.61412936]
[1751655484657,1.41006845,107600.0,107590.0,0.42826596]
[1751655484954,1.73659271,107600.0,107590.0,0.61112936]
[1751655485162,0.1858634,107590.0,107580.0,0.01970559]
[1751655485346,1.20318766,107590.0,107580.0,0.06970559]
[1751655485655,1.24748412,107590.0,107580.0,0.58966614]
[1751655485851,1.24748412,107590.0,107580.0,0.41478554]
[1751655486057,1.24748412,107590.0,107580.0,0.06855569]
[1751655486446,1.24748412,107590.0,107580.0,0.39507995]
[1751655486954,1.24948412,107590.0,107580.0,0.39507995]
[1751655487249,1.24948412,107590.0,107580.0,0.42391671]
[1751655487454,1.24948412,107590.0,107580.0,0.60979731]
[1751655487846,1.2496606,107590.0,107580.0,0.28327305]
[1751655488250,0.54915986,107590.0,107580.0,0.60997379]
[1751655488445,0.00249646,107590.0,107580.0,1.01937453]
[1751655488847,0.00249646,107590.0,107580.0,1.64017453]
[1751655489054,0.00249646,107590.0,107580.0,2.15037303]
[1751655489446,0.002,107590.0,107580.0,2.15037303]
[1751655489648,0.37840589,107600.0,107590.0,0.1858634]
[1751655489853,0.37840589,107600.0,107590.0,0.6464009]
[1751655490762,0.37940589,107600.0,107590.0,0.6464009]
[1751655491759,0.37940589,107600.0,107590.0,0.31970016]
[1751655491961,0.37940589,107600.0,107590.0,0.6464009]
[1751655492156,0.38140589,107600.0,107590.0,0.6474009]
[1751655494858,0.56725199,107600.0,107590.0,0.6474009]
[1751655495063,0.56725199,107600.0,107590.0,0.32070016]
[1751655495561,1.22395273,107600.0,107590.0,0.03983676]
[1751655495764,1.22395273,107600.0,107580.0,0.2323473]
[1751655495765,0.2333467,107590.0,107580.0,0.2323473]
[1751655496064,1.3923834,107590.0,107580.0,0.62284804]
[1751655496256,1.3923834,107590.0,107580.0,0.65284804]
[1751655496756,1.3923834,107590.0,107580.0,0.66130395]
[1751655496956,1.3933834,107590.0,107580.0,0.66130395]
[1751655497156,1.3933834,107590.0,107580.0,0.2816774]
[1751655497362,1.4544834,107590.0,107580.0,0.2816774]
[1751655497759,1.4544834,107590.0,107580.0,0.0658]
[1751655498161,1.4544834,107590.0,107580.0,0.2516806]
[1751655499265,1.4544834,107590.0,107580.0,0.2190806]
[1751655504469,1.26862,107590.0,107580.0,0.2190806]
[1751655504662,1.4544834,107590.0,107580.0,0.2190806]
[1751655506168,2.10118414,107590.0,107580.0,0.002]
[1751655507764,2.10118414,107590.0,107580.0,0.03061952]
[1751655508670,2.10118414,107590.0,107580.0,0.21650012]
[1751655510563,2.10118414,107590.0,107580.0,0.25358316]
[1751655511270,2.10118414,107590.0,107580.0,0.23933487]
[1751655511576,2.10118414,107590.0,107580.0,0.25359549]
[1751655512165,2.10118414,107590.0,107580.0,0.23933487]
[1751655512369,2.10618414,107590.0,107580.0,0.22296364]
[1751655512569,2.10918414,107590.0,107580.0,0.22296364]
[1751655513075,2.10918414,107590.0,107580.0,0.23734097]
[1751655513273,2.1096806,107590.0,107580.0,0.25159667]
[1751655514181,2.1418806,107590.0,107580.0,0.25159667]
[1751655515781,2.1418806,107590.0,107580.0,0.251604]
[1751655517885,0.1858806,107580.0,107570.0,0.03708304]
[1751655518086,1.27383725,107580.0,107570.0,0.22298094]
[1751655518882,1.27783725,107580.0,107570.0,0.03708304]
[1751655519082,1.27883725,107580.0,107570.0,0.03708304]
[1751655519283,1.31213725,107580.0,107570.0,0.03708304]
[1751655520985,0.1868979,107570.0,107560.0,0.3797871]
[1751655521185,0.1868979,107570.0,107560.0,0.10807242]
[1751655521186,1.4544379,107570.0,107560.0,0.10807242]
[1751655521484,1.4544379,107570.0,107560.0,0.29398762]
[1751655521686,1.4544379,107570.0,107560.0,0.31251876]
[1751655521886,1.4544379,107570.0,107560.0,0.34961836]
[1751655522090,1.4564379,107570.0,107560.0,0.34961836]
[1751655522281,1.53263701,107570.0,107560.0,0.34961836]
[1751655523182,1.53263701,107570.0,107560.0,0.31251876]
[1751655523881,1.53263701,107570.0,107560.0,0.34351876]
[1751655526488,1.47013701,107570.0,107560.0,0.6702195]
[1751655528290,1.47013701,107570.0,107560.0,0.61460532]
[1751655529793,0.62589701,107570.0,107560.0,0.61460532]
[1751655530092,0.62589701,107570.0,107560.0,0.69898874]
[1751655532292,0.62589701,107570.0,107560.0,0.372288]
[1751655533391,0.62589701,107570.0,107560.0,0.37228911]
[1751655533786,0.62589701,107570.0,107560.0,0.35380516]
[1751655533986,0.62589701,107570.0,107560.0,0.64337567]
[1751655535699,0.62589701,107570.0,107560.0,0.31667493]
[1751655536598,0.62489701,107570.0,107560.0,0.31667493]
[1751655536798,0.62589701,107570.0,107560.0,0.31667493]
[1751655538806,0.62589701,107570.0,107560.0,0.64337567]
[1751655540604,0.65919701,107570.0,107560.0,0.31667493]
[1751655540805,0.69049701,107570.0,107560.0,0.31667493]
[1751655541904,1.01728235,107570.0,107560.0,0.64346027]
[1751655543309,0.69049701,107570.0,107560.0,0.64346027]
[1751655543512,0.62489701,107570.0,107560.0,0.97024561]
[1751655543712,0.62589701,107570.0,107560.0,0.97024561]
[1751655543908,0.62489701,107570.0,107560.0,0.97024561]
[1751655544304,0.62589701,107570.0,107560.0,0.97024561]
[1751655544508,0.62489701,107570.0,107560.0,1.02598337]
[1751655544707,0.62589701,107570.0,107560.0,1.02598337]
[1751655545108,0.43899911,107570.0,107560.0,0.97024561]
[1751655545415,0.002,107570.0,107560.0,1.38104561]
[1751655545710,0.002,107570.0,107560.0,1.45534811]
[1751655546304,0.00249646,107570.0,107560.0,1.45534811]
[1751655547610,0.00249646,107570.0,107560.0,1.38104561]
[1751655549415,0.8759797,107570.0,107560.0,1.12205804]
[1751655549618,0.9394797,107570.0,107560.0,0.60460338]
[1751655549806,0.9716797,107570.0,107560.0,0.60460338]
[1751655550009,0.9716797,107570.0,107560.0,0.5345041]
[1751655550213,0.9716797,107570.0,107560.0,1.39323412]
[1751655550518,0.9716797,107570.0,107560.0,0.54903412]
[1751655550712,0.9716797,107570.0,107560.0,1.39323412]
[1751655550913,0.9716797,107570.0,107560.0,1.44897924]
[1751655551110,1.04495803,107570.0,107560.0,1.44897924]
[1751655551615,1.04495803,107570.0,107560.0,0.60477924]
[1751655552917,1.04495803,107570.0,107560.0,0.60477972]
[1751655553705,1.04495803,107570.0,107560.0,0.27799438]
[1751655553921,1.04498725,107570.0,107560.0,0.27799438]
[1751655555814,1.04498725,107570.0,107560.0,0.27799457]
[1751655556522,1.04498725,107570.0,107560.0,0.27060519]
[1751655558718,2.22914725,107570.0,107560.0,0.08469048]
[1751655558916,2.22914725,107570.0,107560.0,0.02894536]
[1751655559118,2.23706194,107570.0,107560.0,0.0846956]
[1751655559818,1.89706194,107570.0,107560.0,0.0846956]
[1751655560020,2.21706194,107570.0,107560.0,0.0846956]
[1751655560524,2.21706194,107570.0,107560.0,0.2706108]
[1751655560825,2.21706194,107570.0,107560.0,0.25607962]
[1751655561123,2.21706194,107570.0,107560.0,0.24166544]
[1751655561319,2.21706194,107570.0,107560.0,0.05575024]
[1751655561525,2.20914725,107570.0,107560.0,0.22307334]
[1751655564925,2.20914725,107570.0,107560.0,0.03715814]
[1751655565125,2.20914725,107570.0,107560.0,0.22307364]
[1751655565525,2.20914725,107570.0,107560.0,0.03715814]
[1751655566629,2.23914725,107570.0,107560.0,0.03715814]
[1751655566822,2.23914725,107570.0,107560.0,0.22307364]
[1751655570132,2.24014725,107570.0,107560.0,0.22307364]
[1751655571533,2.24014725,107570.0,107550.0,4.136562]
[1751655571534,0.1869157,107560.0,107550.0,4.136562]
[1751655571735,0.6115157,107560.0,107550.0,4.246562]
[1751655572529,0.6115157,107560.0,107550.0,4.20940386]
[1751655572733,0.6115157,107560.0,107550.0,4.21040386]
[1751655572933,0.6125157,107560.0,107550.0,4.21040386]
[1751655573634,0.6125157,107560.0,107550.0,4.16392126]
[1751655573834,1.4567157,107560.0,107550.0,4.16392126]
[1751655574636,1.4567157,107560.0,107550.0,4.23305073]
[1751655574837,1.4567157,107560.0,107550.0,4.19592126]
[1751655575337,1.4567157,107560.0,107550.0,4.23305113]
[1751655575536,1.4567157,107560.0,107550.0,4.19592126]
[1751655575736,1.78357591,107560.0,107550.0,4.52278147]
[1751655576736,1.78357591,107560.0,107550.0,4.55598147]
[1751655577136,1.78357591,107560.0,107550.0,4.50950007]
[1751655578136,1.78357591,107560.0,107550.0,4.18263986]
[1751655578338,1.78357591,107560.0,107550.0,4.50950007]
[1751655579434,1.78407237,107560.0,107550.0,4.56525031]
[1751655579634,1.78407237,107560.0,107550.0,4.2383901]
[1751655579836,1.78407237,107560.0,107550.0,4.56525031]
[1751655581138,1.78407237,107560.0,107550.0,4.57978231]
[1751655581738,1.78407237,107560.0,107550.0,4.59387674]
[1751655583940,1.45721216,107560.0,107550.0,4.59387674]
[1751655584141,1.78407237,107560.0,107550.0,4.59387674]
[1751655584742,1.78407237,107560.0,107550.0,4.26701653]
[1751655585142,1.78407237,107560.0,107550.0,4.59387674]
[1751655585541,1.78407237,107560.0,107550.0,4.26701653]
[1751655585836,2.11093258,107560.0,107550.0,4.59387674]
[1751655586542,1.78407237,107560.0,107550.0,4.59387674]
[1751655587444,1.78407237,107560.0,107550.0,4.26701653]
[1751655587643,1.78407237,107560.0,107550.0,4.59387674]
[1751655589343,2.11093258,107560.0,107550.0,4.59387674]
[1751655589741,2.11093258,107560.0,107550.0,4.26701653]
[1751655590142,2.11093258,107560.0,107550.0,4.59387674]
[1751655591339,2.11093258,107560.0,107550.0,4.57978231]
[1751655591545,2.11093258,107560.0,107550.0,4.59395125]
[1751655591746,1.45721216,107560.0,107550.0,4.59395125]
[1751655592041,1.78407237,107560.0,107550.0,4.59395125]
[1751655592951,2.14487237,107560.0,107550.0,4.2113408]
[1751655593142,2.14487237,107560.0,107550.0,4.59399288]
[1751655595050,2.14487237,107560.0,107550.0,4.26713267]
[1751655595245,2.14487237,107560.0,107550.0,4.59399288]
[1751655596950,2.14487237,107560.0,107550.0,4.26713267]
[1751655597152,1.30067237,107560.0,107550.0,4.59399288]
[1751655597452,2.14479237,107560.0,107550.0,4.59399288]
[1751655598058,1.81793216,107560.0,107550.0,4.59399288]
[1751655598247,2.47165258,107560.0,107550.0,4.26713267]
[1751655598449,2.47165258,107560.0,107550.0,4.59399288]
[1751655598747,2.47165258,107560.0,107550.0,4.26713267]
[1751655598945,2.14479237,107560.0,107550.0,4.59399288]
[1751655600142,2.14479237,107560.0,107550.0,4.26713267]
[1751655600346,2.14479237,107560.0,107550.0,4.59399288]
[1751655600557,2.14479237,107560.0,107550.0,4.25940916]
[1751655600752,2.14479237,107560.0,107550.0,4.58626937]
[1751655602555,1.81793216,107560.0,107550.0,4.25940916]
[1751655602754,2.14479237,107560.0,107550.0,4.58626937]
[1751655603554,2.14479237,107560.0,107550.0,4.59459276]
[1751655604754,2.14479237,107560.0,107550.0,4.26773255]
[1751655604952,2.14479237,107560.0,107550.0,4.59459276]
[1751655605155,2.14479237,107560.0,107550.0,4.59439485]
[1751655605354,2.14479237,107560.0,107550.0,4.82439485]
[1751655606356,2.14479237,107560.0,107550.0,4.81607146]
[1751655607855,2.14479237,107560.0,107550.0,4.82414852]
[1751655608456,2.47165258,107560.0,107550.0,4.39261125]
[1751655608656,2.50405258,107560.0,107550.0,4.39261125]
[1751655612362,2.50405258,107560.0,107550.0,4.33681938]
[1751655614061,2.50405258,107560.0,107550.0,4.39261125]
[1751655614766,2.50405258,107560.0,107550.0,4.34613085]
[1751655615465,2.50405258,107560.0,107550.0,4.00613085]
[1751655615960,2.50405258,107560.0,107550.0,4.00614505]
[1751655616166,2.85405258,107560.0,107550.0,4.00614505]
[1751655616760,2.50405258,107560.0,107550.0,4.00614505]
[1751655616962,2.84405258,107560.0,107550.0,4.00614667]
[1751655617166,1.85033216,107560.0,107550.0,4.00614667]
[1751655617466,2.85405258,107560.0,107550.0,4.00614667]
[1751655617667,2.85405258,107560.0,107550.0,3.82021357]
[1751655617967,2.84405258,107560.0,107550.0,3.66161875]
[1751655618764,2.84405258,107560.0,107550.0,3.64302304]
[1751655619367,2.99815258,107560.0,107550.0,3.58917318]
[1751655619563,4.89254479,107560.0,107550.0,2.98227467]
[1751655619760,4.93348458,107560.0,107550.0,2.98227467]
[1751655620064,3.85256458,107560.0,107550.0,2.95339282]
[1751655620264,4.93456458,107560.0,107550.0,2.95339282]
[1751655620659,3.41961258,107560.0,107550.0,2.95339282]
[1751655620865,4.50257258,107560.0,107550.0,2.95339282]
[1751655621069,4.50557258,107560.0,107550.0,2.95339282]
[1751655621271,4.69152458,107560.0,107550.0,2.95339282]
[1751655622772,4.69152458,107560.0,107550.0,2.9533925]
[1751655623168,3.60956458,107560.0,107550.0,2.9533925]
[1751655623374,4.69144458,107560.0,107550.0,2.9533925]
[1751655623676,4.50549258,107560.0,107550.0,2.5456836]
[1751655623873,4.50549258,107560.0,107550.0,2.1637438]
[1751655624079,4.50549258,107560.0,107550.0,1.9708422]
[1751655624279,4.50549258,107560.0,107550.0,1.9011784]
[1751655624584,4.69148458,107560.0,107550.0,1.8544467]
[1751655624782,3.60956458,107560.0,107550.0,1.85444776]
[1751655624978,4.69136458,107560.0,107550.0,1.85444776]
[1751655625179,3.60956458,107560.0,107550.0,1.85459259]
[1751655625482,4.69136458,107560.0,107550.0,1.71969669]
[1751655625681,4.69136458,107560.0,107550.0,1.63774959]
[1751655625876,4.94136458,107560.0,107550.0,1.48646139]
[1751655626185,4.94136458,107560.0,107550.0,1.23580599]
[1751655626186,4.95891511,107560.0,107550.0,1.23580599]
[1751655626483,3.87715511,107560.0,107550.0,1.14421319]
[1751655626679,4.95891511,107560.0,107550.0,0.83675989]
[1751655626880,3.87715511,107560.0,107550.0,0.71590429]
[1751655627081,4.95915511,107560.0,107550.0,0.52299819]
[1751655627383,3.87715511,107560.0,107550.0,0.34029649]
[1751655627579,4.95915511,107560.0,107550.0,0.26468269]
[1751655627773,4.95915511,107560.0,107550.0,0.23334799]
[1751655629383,4.70915511,107560.0,107550.0,0.23334799]
[1751655629886,4.86345511,107560.0,107550.0,0.23334799]
[1751655630186,4.70915511,107560.0,107550.0,0.23334799]
[1751655633890,4.52296311,107560.0,107550.0,0.23334799]
[1751655634297,4.52196311,107560.0,107550.0,0.23334799]
[1751655634488,4.52296311,107560.0,107550.0,0.23334799]
[1751655634687,4.52196311,107560.0,107550.0,0.23314868]
[1751655634993,4.52296311,107560.0,107550.0,0.23314868]
[1751655643105,4.52196311,107560.0,107550.0,0.23314868]
[1751655643294,4.52296311,107560.0,107550.0,0.23314868]
[1751655643797,4.52196311,107560.0,107550.0,0.23314868]
[1751655644097,4.48956311,107560.0,107550.0,0.23314868]
[1751655644301,4.49056311,107560.0,107550.0,0.29554868]
[1751655645011,4.49056311,107560.0,107550.0,0.23314868]
[1751655645198,4.52266311,107560.0,107550.0,0.23314868]
[1751655645498,4.84952332,107560.0,107550.0,0.23314868]
[1751655646290,4.84908332,107560.0,107550.0,0.23314868]
[1751655647005,4.84904332,107560.0,107550.0,0.23314868]
[1751655649805,4.84904332,107560.0,107550.0,0.23314793]
[1751655650005,4.90444517,107560.0,107550.0,0.23314793]
[1751655651110,4.57758496,107560.0,107550.0,0.23314793]
[1751655652105,4.90444517,107560.0,107550.0,0.23314793]
[1751655652805,4.90444517,107560.0,107550.0,0.23320392]
[1751655653509,4.90444517,107560.0,107550.0,0.23320427]
[1751655653710,4.90344517,107560.0,107550.0,0.23320427]
[1751655653908,4.90444517,107560.0,107550.0,0.23320427]
[1751655656012,4.90344517,107560.0,107550.0,0.23320427]
[1751655656210,4.90444517,107560.0,107550.0,0.23320427]
[1751655658608,4.90444517,107560.0,107550.0,0.23299601]
[1751655660207,4.90444517,107560.0,107550.0,0.2330023]
[1751655661510,4.90444517,107560.0,107550.0,0.21923071]
[1751655663817,4.90444517,107560.0,107550.0,0.21923074]
[1751655664210,4.90644517,107560.0,107550.0,0.21923074]
[1751655664613,4.90644517,107560.0,107550.0,0.23296906]
[1751655666013,4.90344517,107560.0,107550.0,0.23296906]
[1751655666214,4.90644517,107560.0,107550.0,0.23296906]
[1751655669513,4.90644517,107560.0,107550.0,0.23296797]
[1751655672117,4.57958496,107560.0,107550.0,0.23296797]
[1751655672423,4.90644517,107560.0,107550.0,0.23296797]
[1751655674826,4.51266496,107560.0,107550.0,0.23296797]
[1751655675023,3.52148311,107560.0,107550.0,0.31563078]
[1751655675320,3.52148311,107560.0,107510.0,0.00186021]
[1751655675321,0.1869844,107520.0,107510.0,0.00186021]
[1751655675522,2.87441805,107520.0,107510.0,0.01565965]
[1751655675718,1.02521763,107520.0,107510.0,0.01565965]
[1751655675919,1.02521763,107520.0,107510.0,0.37531986]
[1751655675920,0.92621763,107520.0,107510.0,0.37531986]
[1751655676122,1.77365763,107520.0,107510.0,0.37531986]
[1751655676416,0.92621763,107520.0,107510.0,0.61152042]
[1751655676728,0.92621763,107520.0,107510.0,0.67512042]
[1751655676923,0.92621763,107520.0,107510.0,0.68891664]
[1751655677128,0.92821763,107520.0,107510.0,0.68891664]
[1751655677724,0.92821763,107520.0,107510.0,0.87491834]
[1751655678223,0.92821763,107520.0,107510.0,0.62491834]
[1751655678529,1.2555743,107520.0,107510.0,0.11205643]
[1751655678830,1.2555743,107520.0,107510.0,0.07965643]
[1751655679021,1.2555743,107520.0,107510.0,0.11195643]
[1751655679220,1.58243451,107520.0,107510.0,0.11195643]
[1751655679521,1.2555743,107520.0,107510.0,0.11195643]
[1751655679725,1.58243451,107520.0,107510.0,0.11495643]
[1751655680221,1.58043451,107520.0,107510.0,0.11495643]
[1751655680422,1.58443451,107520.0,107510.0,0.11495643]
[1751655681329,1.2575743,107520.0,107510.0,0.11495643]
[1751655681518,1.2575743,107520.0,107510.0,0.11295643]
[1751655681723,0.93071409,107520.0,107510.0,0.62581824]
[1751655681929,1.77915409,107520.0,107510.0,0.62581824]
[1751655682928,2.76287451,107520.0,107510.0,0.01665643]
[1751655683132,2.85287451,107520.0,107510.0,0.01665643]
[1751655683429,2.79187451,107520.0,107510.0,0.01665643]
[1751655683732,2.80287451,107520.0,107510.0,0.04755643]
[1751655683934,2.80287451,107520.0,107510.0,0.07775643]
[1751655684122,2.43287451,107520.0,107510.0,0.07775643]
[1751655684427,2.43343451,107520.0,107510.0,0.07775643]
[1751655684830,2.43243451,107520.0,107510.0,0.07775643]
[1751655685332,2.43343451,107520.0,107510.0,0.07775643]
[1751655685524,2.74343451,107520.0,107510.0,0.07775643]
[1751655685724,2.74243451,107520.0,107510.0,0.07775643]
[1751655685919,2.74343451,107520.0,107510.0,0.07775643]
[1751655686334,2.43243451,107520.0,107510.0,0.07775643]
[1751655686526,1.77971409,107520.0,107510.0,0.07775643]
[1751655686831,2.43343451,107520.0,107510.0,0.29635783]
[1751655687031,2.43343451,107520.0,107510.0,0.11035643]
[1751655687423,1.77971409,107520.0,107510.0,0.29635783]
[1751655687628,2.43343451,107520.0,107510.0,0.29635783]
[1751655687828,2.43343451,107520.0,107510.0,0.11035643]
[1751655688534,2.43343451,107520.0,107510.0,0.29635783]
[1751655689128,2.43243451,107520.0,107510.0,0.3107153]
[1751655689337,2.43343451,107520.0,107510.0,0.3107153]
[1751655689533,0.92971409,107520.0,107510.0,0.63757551]
[1751655689841,1.77959409,107520.0,107510.0,0.63757551]
[1751655690134,2.1054543,107520.0,107510.0,0.63757551]
[1751655690438,2.1064543,107520.0,107510.0,0.63757551]
[1751655690933,2.1054543,107520.0,107510.0,0.63757551]
[1751655691327,1.77859409,107520.0,107510.0,0.63757551]
[1751655691534,2.1064543,107520.0,107510.0,0.63757551]
[1751655691733,2.1064543,107520.0,107510.0,0.63781997]
[1751655691734,1.77959409,107520.0,107510.0,0.63781997]
[1751655691936,0.92971409,107520.0,107510.0,0.63781997]
[1751655692136,0.93071409,107520.0,107510.0,0.63781997]
[1751655692539,0.93071379,107520.0,107510.0,0.63781997]
[1751655693831,0.93071379,107520.0,107510.0,0.5462353]
[1751655695738,0.20911379,107520.0,107510.0,0.5462353]
[1751655695940,0.93071379,107520.0,107510.0,0.87333997]
[1751655698038,0.93071379,107520.0,107510.0,0.8589825]
[1751655698241,0.93071379,107520.0,107510.0,0.53187783]
[1751655698540,0.93071379,107520.0,107510.0,0.8589825]
[1751655699938,0.93071379,107520.0,107510.0,0.53187783]
[1751655700740,0.93071379,107520.0,107510.0,0.29635783]
[1751655700942,1.25781846,107520.0,107510.0,0.29635783]
[1751655701337,1.25781846,107520.0,107500.0,0.1395138]
[1751655701535,0.001,107450.0,107440.0,0.09279711]
[1751655701854,0.3618,107450.0,107440.0,0.51322727]
[1751655702034,0.3618,107450.0,107440.0,0.93467127]
[1751655702035,0.38506161,107450.0,107440.0,0.93467127]
[1751655702233,0.3608,107450.0,107440.0,0.93467127]